fUSD/lending_fUSD_20250202
["ID","MTS","AMOUNT","RATE_DAILY","PERIOD"]
[351293645,1738506891090,-500.0,0.00011642,2]
[351293646,1738506891100,-426.08117487,0.00011642,2]
[351293647,1738506891112,-73.91882513,0.00011642,2]
[351293648,1738506891121,-426.08117487,0.00011642,2]
[351293649,1738506891133,-73.91882513,0.00011642,2]
[351293650,1738506891142,-426.08117487,0.00011642,2]
[351293651,1738506891164,-73.91882513,0.00011642,2]
[351293652,1738506891173,-500.0,0.00011642,2]
[351293653,1738506891182,-2787.54117487,0.00011642,2]
[351293654,1738506891194,-2154.24882513,0.00011642,2]
[351293655,1738506891204,-532.42004154,0.00011642,2]
[351293656,1738506891214,-405.00113333,0.00011642,2]
[351293657,1738506891226,-94.99886667,0.00011642,2]
[351293658,1738506891235,-807.74,0.00011642,2]
[351293659,1738506891245,-500.0,0.00011642,2]
[351293660,1738506891254,-1173.94,0.00011642,2]
[351293661,1738506891264,-500.0,0.00011642,2]
[351293662,1738506891273,-436.86113333,0.00011642,2]
[351293663,1738506891285,-63.13886667,0.00011642,2]
[351293664,1738506891294,-500.0,0.00011642,2]
[351293665,1738506891304,-500.0,0.00011642,2]
[351293666,1738506891314,-771.41113333,0.00011642,2]
[351293667,1738506891325,-500.0,0.00011642,2]
[351293668,1738506891353,-500.0,0.00011368,2]
[351293669,1738506891362,-278.09,0.00011642,2]
[351293670,1738506891373,-458.99886667,0.00011642,2]
[351293671,1738506891382,-1340.35113333,0.00011642,2]
[351293672,1738506891394,-500.0,0.00011642,2]
[351293673,1738506891415,-354.61886667,0.00011642,2]
[351293674,1738506891425,-500.0,0.00011642,2]
[351293675,1738506891435,-348.10113333,0.00011642,2]
[351293676,1738506891446,-151.89886667,0.00011642,2]
[351293677,1738506891456,-423.48113333,0.00011642,2]
[351293678,1738506891474,-76.51886667,0.00011642,2]
[351293679,1738506891483,-423.48113333,0.00011642,2]
[351293680,1738506891495,-76.51886667,0.00011642,2]
[351293681,1738506891504,-500.0,0.00011642,2]
[351293682,1738506891513,-85.39113333,0.00011642,2]
[351293683,1738506891525,-414.60886667,0.00011642,2]
[351293684,1738506891534,-85.39113333,0.00011642,2]
[351293685,1738506891545,-500.0,0.00011642,2]
[351293686,1738506891556,-198.48886667,0.00011642,2]
[351293687,1738506891565,-535.48,0.00011642,2]
[351293688,1738506891575,-644.07113333,0.00011642,2]
[351293689,1738506891593,-5710.65,0.00011642,2]
[351293690,1738506891604,-500.0,0.00011642,2]
[351293691,1738506891615,-176.77886667,0.00011642,2]
[351293692,1738506891624,-538.5543356,0.00011642,2]
[351293693,1738506891634,-500.0,0.00011642,2]
[351293694,1738506891643,-554.19,0.00011642,2]
[351293695,1738506891652,-500.0,0.00011642,2]
[351293696,1738506891663,-571.2,0.00011642,2]
[351293697,1738506891672,-63.72679773,0.00011642,2]
[351293698,1738506891695,-436.27320227,0.00011642,2]
[351293699,1738506891704,-63.72679773,0.00011642,2]
[351293700,1738506891715,-500.0,0.00011642,2]
[351293701,1738506891735,-133.16320227,0.00011642,2]
[351293702,1738506891745,-500.0,0.00011642,2]
[351293703,1738506891754,-228.39679773,0.00011642,2]
[351293704,1738506891766,-271.60320227,0.00011642,2]
[351293705,1738506891775,-228.39679773,0.00011642,2]
[351293706,1738506891787,-271.60320227,0.00011642,2]
[351293707,1738506891796,-499.54679773,0.00011642,2]
[351293708,1738506891810,-496.70248679,0.00011642,2]
[351293709,1738506891829,-106.32071548,0.00011642,2]
[351293710,1738506891839,-393.67928452,0.00011642,2]
[351293711,1738506891850,-573.73071548,0.00011642,2]
[351293712,1738506891859,-500.0,0.00011643,2]
[351293713,1738506891869,-500.0,0.00011643,2]
[351293714,1738506891878,-500.0,0.00011643,2]
[351293715,1738506891888,-385.79928452,0.00011643,2]
[351293716,1738506891900,-114.20071548,0.00011643,2]
[351293717,1738506891910,-385.79928452,0.00011643,2]
[351293718,1738506891922,-114.20071548,0.00011643,2]
[351293719,1738506891931,-639.14928452,0.00011643,2]
[351293720,1738506891943,-728.34071548,0.00011643,2]
[351293721,1738506891953,-500.0,0.00011643,2]
[351293722,1738506891962,-286.15928452,0.00011643,2]
[351293723,1738506891983,-213.84071548,0.00011643,2]
[351293724,1738506891992,-500.0,0.00011643,2]
[351293725,1738506892002,-500.0,0.00011643,2]
[351293726,1738506892015,-584.87928452,0.00011643,2]
[351293727,1738506892030,-500.0,0.00011643,2]
[351293728,1738506892048,-122.56071548,0.00011643,2]
[351293729,1738506892058,-377.43928452,0.00011643,2]
[351293730,1738506892069,-230.33071548,0.00011643,2]
[351293731,1738506892078,-269.66928452,0.00011643,2]
[351293732,1738506892098,-230.33071548,0.00011643,2]
[351293733,1738506892107,-269.66928452,0.00011643,2]
[351293734,1738506892118,-500.0,0.00011643,2]
[351293735,1738506892129,-124.27071548,0.00011643,2]
[351293736,1738506892139,-375.72928452,0.00011643,2]
[351293737,1738506892151,-124.27071548,0.00011643,2]
[351293738,1738506892161,-375.72928452,0.00011643,2]
[351293739,1738506892179,-124.27071548,0.00011643,2]
[351293740,1738506892189,-375.72928452,0.00011643,2]
[351293741,1738506892201,-500.0,0.00011643,2]
[351293742,1738506892219,-17.38071548,0.00011643,2]
[351293743,1738506892228,-533.68,0.00011643,2]
[351293744,1738506892238,-904.83,0.00011643,2]
[351293745,1738506892248,-411.38928452,0.00011643,2]
[351293746,1738506892266,-88.61071548,0.00011643,2]
[351293747,1738506892276,-411.38928452,0.00011643,2]
[351293748,1738506892288,-88.61071548,0.00011643,2]
[351293749,1738506892298,-411.38928452,0.00011643,2]
[351293750,1738506892316,-500.0,0.00011643,2]
[351293751,1738506892327,-288.31071548,0.00011643,2]
[351293752,1738506892336,-211.68928452,0.00011643,2]
[351293753,1738506892347,-288.31071548,0.00011643,2]
[351293754,1738506892357,-500.0,0.00011643,2]
[351293755,1738506892367,-172.95928452,0.00011643,2]
[351293756,1738506892378,-798.74071548,0.00011643,2]
[351293757,1738506892388,-41.74928452,0.00011643,2]
[351293758,1738506892399,-458.25071548,0.00011643,2]
[351293759,1738506892408,-41.74928452,0.00011643,2]
[351293760,1738506892444,-500.0,0.00011643,2]
[351293761,1738506892455,-316.67071548,0.00011643,2]
[351293762,1738506892464,-183.32928452,0.00011643,2]
[351293763,1738506892663,-316.67071548,0.00011643,2]
[351293764,1738506892673,-450.42928452,0.00011643,2]
[351293765,1738506892685,-500.0,0.00011643,2]
[351293766,1738506892704,-93.75071548,0.00011643,2]
[351293767,1738506892715,-449.95928452,0.00011643,2]
[351293768,1738506892731,-98.94071548,0.00011643,2]
[351293769,1738506892740,-401.05928452,0.00011643,2]
[351293770,1738506892759,-98.94071548,0.00011643,2]
[351293771,1738506892769,-401.05928452,0.00011643,2]
[351293772,1738506892803,-98.94071548,0.00011643,2]
[351293773,1738506892813,-401.05928452,0.00011643,2]
[351293774,1738506892824,-500.0,0.00011643,2]
[351293775,1738506892836,-98.94071548,0.00011643,2]
[351293776,1738506892845,-401.05928452,0.00011643,2]
[351293777,1738506892865,-605.77,0.00011643,2]
[351293778,1738506892876,-500.0,0.00011643,2]
[351293779,1738506892894,-500.0,0.00011643,2]
[351293780,1738506892906,-273.57071548,0.00011643,2]
[351293781,1738506892919,-226.42928452,0.00011643,2]
[351293782,1738506892931,-273.57071548,0.00011643,2]
[351293783,1738506892940,-226.42928452,0.00011643,2]
[351293784,1738506892951,-500.0,0.00011643,2]
[351293785,1738506892962,-500.0,0.00011643,2]
[351293786,1738506892973,-61.07071548,0.00011643,2]
[351293787,1738506892982,-438.92928452,0.00011643,2]
[351293788,1738506893000,-500.0,0.00011643,2]
[351293789,1738506893020,-500.0,0.00011643,2]
[351293790,1738506893035,-500.0,0.00011643,2]
[351293791,1738506893058,-348.84071548,0.00011643,2]
[351293792,1738506893067,-151.15928452,0.00011643,2]
[351293793,1738506893079,-348.84071548,0.00011643,2]
[351293794,1738506893090,-173.25035329,0.00011643,2]
[351293795,1738506893101,-500.0,0.00011643,2]
[351293796,1738506893112,-500.0,0.00011643,2]
[351293797,1738506893129,-421.36964671,0.00011643,2]
[351293798,1738506893138,-78.63035329,0.00011643,2]
[351293799,1738506893154,-421.36964671,0.00011643,2]
[351293800,1738506893165,-78.63035329,0.00011643,2]
[351293801,1738506893192,-500.0,0.00011368,2]
[351293802,1738506893213,-421.36964671,0.00011643,2]
[351293803,1738506893223,-122.03599867,0.00011643,2]
[351293804,1738506893238,-500.0,0.00011643,2]
[351293805,1738506893249,-258.29400133,0.00011643,2]
[351293806,1738506893258,-241.70599867,0.00011643,2]
[351293807,1738506893276,-418.66400133,0.00011643,2]
[351293808,1738506893285,-365.21599867,0.00011643,2]
[351293809,1738506893301,-500.0,0.00011643,2]
[351293810,1738506893312,-500.0,0.00011643,2]
[351293811,1738506893323,-513.35400133,0.00011643,2]
[351293812,1738506893332,-155.59599867,0.00011643,2]
[351293813,1738506893343,-500.0,0.00011643,2]
[351293814,1738506893360,-500.0,0.00011643,2]
[351293815,1738506893372,-307.37400133,0.00011643,2]
[351293816,1738506893381,-192.62599867,0.00011643,2]
[351293817,1738506893399,-422.59400133,0.00011643,2]
[351293818,1738506893408,-500.0,0.00011643,2]
[351293819,1738506893418,-444.89599867,0.00011643,2]
[351293820,1738506893438,-500.0,0.00011505,2]
[351293821,1738506893450,-50.48428843,0.00011643,2]
[351293822,1738506893459,-449.51571157,0.00011643,2]
[351293823,1738506893471,-50.48428843,0.00011643,2]
[351293824,1738506893482,-469.13205341,0.00011643,2]
[351293825,1738506893502,-500.0,0.00010958,2]
[351293826,1738506893514,-500.0,0.00011643,2]
[351293827,1738506893525,-500.0,0.00011643,2]
[351293828,1738506893537,-23.44794659,0.00011643,2]
[351293829,1738506893547,-1183.99205341,0.00011643,2]
[351293830,1738506893558,-206.10794659,0.00011643,2]
[351293831,1738506893567,-401.66205341,0.00011643,2]
[351293832,1738506893584,-98.33794659,0.00011643,2]
[351293833,1738506893593,-401.66205341,0.00011643,2]
[351293834,1738506893612,-98.33794659,0.00011643,2]
[351293835,1738506893622,-500.0,0.00011643,2]
[351293836,1738506893632,-295.60205341,0.00011643,2]
[351293837,1738506893651,-500.0,0.00011642,2]
[351293838,1738506893663,-500.0,0.00011643,2]
[351293839,1738506893683,-500.0,0.00011095,2]
[351293840,1738506893693,-393.11,0.00011643,2]
[351293841,1738506893704,-500.0,0.00011643,2]
[351293842,1738506893715,-533.68,0.00011643,2]
[351293843,1738506893726,-904.83,0.00011643,2]
[351293844,1738506893738,-500.0,0.00011643,2]
[351293845,1738506893749,-380.10794659,0.00011643,2]
[351293846,1738506893759,-119.89205341,0.00011643,2]
[351293847,1738506893770,-380.10794659,0.00011643,2]
[351293848,1738506893780,-192.1272259,0.00011643,2]
[351293849,1738506893790,-627.46482751,0.00011643,2]
[351293850,1738506893811,-500.0,0.00011643,2]
[351293851,1738506893829,-500.0,0.00011643,2]
[351293852,1738506893841,-500.0,0.00011643,2]
[351293853,1738506893861,-495.48,0.00011232,2]
[351293854,1738506893871,-476.22,0.00011643,2]
[351293855,1738506893882,-500.0,0.00011643,2]
[351293856,1738506893894,-257.77517249,0.00011643,2]
[351293857,1738506893904,-600.64482751,0.00011643,2]
[351293858,1738506893917,-500.0,0.00011643,2]
[351293859,1738506893929,-1044.18,0.00011643,2]
[351293860,1738506893943,-548.9,0.00011643,2]
[351293861,1738506893971,-397.94517249,0.00011643,2]
[351293862,1738506893980,-102.05482751,0.00011643,2]
[351293863,1738506894001,-500.0,0.00011643,2]
[351293864,1738506894016,-1000.0,0.00011643,2]
[351293865,1738506894035,-1911.48517249,0.00011643,2]
[351293866,1738506894046,-368.91482751,0.00011643,2]
[351293867,1738506894057,-500.0,0.00011643,2]
[351293868,1738506894070,-965.63517249,0.00011643,2]
[351293869,1738506894080,-321.86482751,0.00011643,2]
[351293870,1738506894092,-178.13517249,0.00011643,2]
[351293871,1738506894101,-1799.35,0.00011643,2]
[351293872,1738506894111,-310.28482751,0.00011643,2]
[351293873,1738506894123,-467.80517249,0.00011643,2]
[351293874,1738506894132,-32.19482751,0.00011643,2]
[351293875,1738506894147,-467.80517249,0.00011643,2]
[351293876,1738506894157,-1126.81482751,0.00011643,2]
[351293877,1738506894178,-75.90517249,0.00011643,2]
[351293878,1738506894188,-204.49768193,0.00011643,2]
[351293879,1738506894198,-219.59714558,0.00011643,2]
[351293880,1738506894213,-500.0,0.00011643,2]
[351293881,1738506894233,-658.44285442,0.00011643,2]
[351293882,1738506894243,-1.92714558,0.00011643,2]
[351293883,1738506894254,-880.33,0.00011643,2]
[351293884,1738506894271,-1878.57,0.00011643,2]
[351293885,1738506894282,-1462.97,0.00011643,2]
[351293886,1738506894295,-615.22,0.00011643,2]
[351293887,1738506894314,-500.0,0.00011643,2]
[351293888,1738506894381,-371.63285442,0.00011643,2]
[351293889,1738506894391,-128.36714558,0.00011643,2]
[351293890,1738506894402,-500.0,0.00011643,2]
[351293891,1738506894423,-33.54285442,0.00011643,2]
[351293892,1738506894434,-500.0,0.00011643,2]
[351293893,1738506894443,-959.03714558,0.00011643,2]
[351293894,1738506894464,-1390.1,0.00011643,2]
[351293895,1738506894475,-500.0,0.00011643,2]
[351293896,1738506894491,-55.31285442,0.00011643,2]
[351293897,1738506894501,-444.68714558,0.00011643,2]
[351293898,1738506894513,-55.31285442,0.00011643,2]
[351293899,1738506894522,-444.68714558,0.00011643,2]
[351293900,1738506894534,-416.87285442,0.00011643,2]
[351293901,1738506894543,-500.0,0.00011643,2]
[351293902,1738506894553,-500.0,0.00011643,2]
[351293903,1738506894562,-771.15,0.00011643,2]
[351293904,1738506894572,-1819.30714558,0.00011643,2]
[351293905,1738506894588,-500.0,0.00011643,2]
[351293906,1738506894601,-140.22285442,0.00011643,2]
[351293907,1738506894611,-359.77714558,0.00011643,2]
[351293908,1738506894624,-140.22285442,0.00011643,2]
[351293909,1738506894635,-753.35,0.00011643,2]
[351293910,1738506894645,-1514.5,0.00011643,2]
[351293911,1738506894655,-953.38714558,0.00011643,2]
[351293912,1738506894675,-845.33285442,0.00011643,2]
[351293913,1738506894686,-500.0,0.00011643,2]
[351293914,1738506894696,-500.0,0.00011643,2]
[351293915,1738506894706,-500.0,0.00011643,2]
[351293916,1738506894716,-500.0,0.00011643,2]
[351293917,1738506894727,-246.33714558,0.00011643,2]
[351293918,1738506894746,-253.66285442,0.00011643,2]
[351293919,1738506894756,-500.0,0.00011643,2]
[351293920,1738506894766,-500.0,0.00011643,2]
[351293921,1738506894776,-500.0,0.00011643,2]
[351293922,1738506894787,-500.0,0.00011643,2]
[351293923,1738506894797,-1259.87714558,0.00011643,2]
[351293924,1738506894818,-607.40285442,0.00011643,2]
[351293925,1738506894828,-500.0,0.00011643,2]
[351293926,1738506894838,-500.0,0.00011643,2]
[351293927,1738506894848,-227.14714558,0.00011643,2]
[351293928,1738506894864,-272.85285442,0.00011643,2]
[351293929,1738506894874,-227.14714558,0.00011643,2]
[351293930,1738506894886,-272.85285442,0.00011643,2]
[351293931,1738506894895,-505.23714558,0.00011643,2]
[351293932,1738506894906,-456.03285442,0.00011643,2]
[351293933,1738506894917,-840.49,0.00011643,2]
[351293934,1738506894927,-500.0,0.00011643,2]
[351293935,1738506894936,-2.82714558,0.00011643,2]
[351293936,1738506895159,-500.0,0.00011368,2]
[351293937,1738506895172,-497.17285442,0.00011643,2]
[351293938,1738506895182,-705.54714558,0.00011643,2]
[351293939,1738506895197,-61.55285442,0.00011643,2]
[351293940,1738506895206,-438.44714558,0.00011643,2]
[351293941,1738506895224,-61.55285442,0.00011643,2]
[351293942,1738506895234,-600.35714558,0.00011643,2]
[351293943,1738506895245,-184.02285442,0.00011643,2]
[351293944,1738506895254,-315.97714558,0.00011643,2]
[351293945,1738506895266,-230.09285442,0.00011643,2]
[351293946,1738506895275,-269.90714558,0.0001168,2]
[351293947,1738506895286,-730.09285442,0.0001168,2]
[351293948,1738506895295,-647.94714558,0.0001168,2]
[351293949,1738506895306,-286.96275442,0.0001168,2]
[351293950,1738506895316,-2500.0,0.0001168,2]
[351293951,1738506895326,-500.0,0.00011779,2]
[351293952,1738506895336,-500.0,0.00011779,2]
[351293953,1738506895346,-500.0,0.00011779,2]
[351293954,1738506895356,-500.0,0.00011779,2]
[351293955,1738506895366,-500.0,0.00011779,2]
[351293956,1738506895376,-423.68724558,0.00011779,2]
[351293957,1738506895396,-500.0,0.00011505,2]
[351293958,1738506895407,-76.31275442,0.00011779,2]
[351293959,1738506895418,-500.0,0.00011779,2]
[351293960,1738506895428,-500.0,0.00011779,2]
[351293961,1738506895438,-500.0,0.00011779,2]
[351293962,1738506895447,-527.15,0.00011779,2]
[351293963,1738506895457,-500.0,0.00011779,2]
[351293964,1738506895467,-300.98724558,0.00011779,2]
[351293965,1738506895486,-500.0,0.00011368,2]
[351293966,1738506895498,-199.01275442,0.00011779,2]
[351293967,1738506895508,-300.98724558,0.00011779,2]
[351293968,1738506895528,-500.0,0.00011642,2]
[351293969,1738506895538,-361.56,0.00011779,2]
[351293970,1738506895549,-16.99275442,0.00011779,2]
[351293971,1738506895558,-483.00724558,0.00011779,2]
[351293972,1738506895571,-16.99275442,0.00011779,2]
[351293973,1738506895582,-500.0,0.00011779,2]
[351293974,1738506895591,-254.15724558,0.00011779,2]
[351293975,1738506895603,-245.84275442,0.00011779,2]
[351293976,1738506895613,-500.0,0.00011779,2]
[351293977,1738506895623,-500.0,0.00011779,2]
[351293978,1738506895633,-502.20665712,0.00011779,2]
[351293979,1738506895642,-500.0,0.00011779,2]
[351293980,1738506895653,-211.48058846,0.00011779,2]
[351293981,1738506895666,-288.51941154,0.00011779,2]
[351293982,1738506895675,-211.48058846,0.00011779,2]
[351293983,1738506895687,-288.51941154,0.00011779,2]
[351293984,1738506895697,-211.48058846,0.00011779,2]
[351293985,1738506895709,-296.50362814,0.00011779,2]
[351293986,1738506895718,-456.84637186,0.00011779,2]
[351293987,1738506895730,-43.15362814,0.00011779,2]
[351293988,1738506895740,-500.0,0.00011779,2]
[351293989,1738506895750,-971.34637186,0.00011779,2]
[351293990,1738506895770,-69.99362814,0.00011779,2]
[351293991,1738506895780,-500.0,0.00011779,2]
[351293992,1738506895790,-500.0,0.00011779,2]
[351293993,1738506895800,-500.0,0.00011779,2]
[351293994,1738506895811,-228.72637186,0.00011779,2]
[351293995,1738506895823,-271.27362814,0.00011779,2]
[351293996,1738506895834,-228.72637186,0.00011779,2]
[351293997,1738506895846,-365.25362814,0.00011779,2]
[351293998,1738506895856,-134.74637186,0.00011779,2]
[351293999,1738506895867,-365.25362814,0.00011779,2]
[351294000,1738506895878,-134.74637186,0.00011779,2]
[351294001,1738506895890,-365.25362814,0.00011779,2]
[351294002,1738506895900,-134.74637186,0.00011779,2]
[351294003,1738506895912,-365.25362814,0.00011779,2]
[351294004,1738506895922,-134.74637186,0.00011779,2]
[351294005,1738506895934,-365.25362814,0.00011779,2]
[351294006,1738506895944,-134.74637186,0.00011779,2]
[351294007,1738506895957,-426.73362814,0.00011779,2]
[351294008,1738506895967,-73.26637186,0.00011779,2]
[351294009,1738506895978,-426.73362814,0.00011779,2]
[351294010,1738506895988,-73.26637186,0.00011779,2]
[351294011,1738506895999,-426.73362814,0.00011779,2]
[351294012,1738506896013,-73.26637186,0.00011779,2]
[351294013,1738506896037,-1867.28,0.00011779,2]
[351294014,1738506896055,-500.0,0.00011779,2]
[351294015,1738506896067,-110.76362814,0.00011779,2]
[351294016,1738506896076,-389.23637186,0.00011779,2]
[351294017,1738506896089,-110.76362814,0.00011779,2]
[351294018,1738506896100,-389.23637186,0.00011779,2]
[351294019,1738506896111,-110.76362814,0.00011779,2]
[351294020,1738506896120,-389.23637186,0.00011779,2]
[351294021,1738506896137,-110.76362814,0.00011779,2]
[351294022,1738506896147,-500.0,0.00011779,2]
[351294023,1738506896157,-350.50637186,0.00011779,2]
[351294024,1738506896359,-149.49362814,0.00011779,2]
[351294025,1738506896369,-690.99637186,0.00011779,2]
[351294026,1738506896381,-500.0,0.00011779,2]
[351294027,1738506896404,-500.0,0.00011779,2]
[351294028,1738506896416,-767.1,0.00011779,2]
[351294029,1738506896427,-500.0,0.00011779,2]
[351294030,1738506896446,-175.21,0.00011779,2]
[351294031,1738506896457,-543.71,0.00011779,2]
[351294032,1738506896468,-500.0,0.00011779,2]
[351294033,1738506896479,-494.73362814,0.00011779,2]
[351294034,1738506896489,-5.26637186,0.00011779,2]
[351294035,1738506896506,-494.73362814,0.00011779,2]
[351294036,1738506896516,-5.26637186,0.00011779,2]
[351294037,1738506896532,-494.73362814,0.00011779,2]
[351294038,1738506896544,-5.26637186,0.00011779,2]
[351294039,1738506896556,-500.0,0.00011779,2]
[351294040,1738506896567,-500.0,0.00011779,2]
[351294041,1738506896587,-500.0,0.00011368,2]
[351294042,1738506896607,-500.0,0.00010958,2]
[351294043,1738506896622,-500.0,0.00011779,2]
[351294044,1738506896633,-142.58362814,0.00011779,2]
[351294045,1738506896642,-357.41637186,0.00011779,2]
[351294046,1738506896654,-142.58362814,0.00011779,2]
[351294047,1738506896664,-384.56637186,0.00011779,2]
[351294048,1738506896680,-115.43362814,0.00011779,2]
[351294049,1738506896689,-384.56637186,0.00011779,2]
[351294050,1738506896708,-500.0,0.00011094,2]
[351294051,1738506896720,-679.54,0.00011779,2]
[351294052,1738506896731,-500.0,0.00011779,2]
[351294053,1738506896747,-476.65362814,0.00011779,2]
[351294054,1738506896756,-23.34637186,0.00011779,2]
[351294055,1738506896768,-476.65362814,0.00011779,2]
[351294056,1738506896778,-23.34637186,0.00011779,2]
[351294057,1738506896806,-323.92541584,0.00011095,2]
[351294058,1738506896815,-176.07458416,0.00011505,2]
[351294059,1738506896835,-323.92541584,0.00011505,2]
[351294060,1738506896844,-176.07458416,0.00011779,2]
[351294061,1738506896856,-313.07904398,0.00011779,2]
[351294062,1738506896865,-186.92095602,0.00011779,2]
[351294063,1738506896876,-313.07904398,0.00011779,2]
[351294064,1738506896885,-186.92095602,0.00011779,2]
[351294065,1738506896896,-313.07904398,0.00011779,2]
[351294066,1738506896907,-186.92095602,0.00011779,2]
[351294067,1738506896919,-500.0,0.00011779,2]
[351294068,1738506896931,-500.0,0.00011779,2]
[351294069,1738506896944,-228.96904398,0.00011779,2]
[351294070,1738506896954,-271.03095602,0.00011779,2]
[351294071,1738506896965,-228.96904398,0.00011779,2]
[351294072,1738506896976,-283.83025503,0.00011779,2]
[351294073,1738506896987,-216.16974497,0.00011779,2]
[351294074,1738506896996,-283.83025503,0.00011779,2]
[351294075,1738506897010,-216.16974497,0.00011779,2]
[351294076,1738506897020,-210.60204477,0.00011779,2]
[351294077,1738506897029,-73.22821026,0.00011779,2]
[351294078,1738506897045,-421.16995746,0.00011779,2]
[351294079,1738506897054,-78.83004254,0.00011779,2]
[351294080,1738506897108,-421.16995746,0.00011779,2]
[351294081,1738506897119,-620.17004254,0.00011779,2]
[351294082,1738506897151,-500.0,0.00011779,2]
[351294083,1738506897163,-500.0,0.00011779,2]
[351294084,1738506897175,-500.0,0.00011779,2]
[351294085,1738506897186,-500.0,0.00011779,2]
[351294086,1738506897198,-500.0,0.00011779,2]
[351294087,1738506897209,-593.98,0.00011779,2]
[351294088,1738506897224,-500.0,0.00011779,2]
[351294089,1738506897235,-441.73502757,0.00011779,2]
[351294090,1738506897255,-500.0,0.00011642,2]
[351294091,1738506897271,-285.90492989,0.00011779,2]
[351294092,1738506897280,-214.09507011,0.00011779,2]
[351294093,1738506897291,-285.90492989,0.00011779,2]
[351294094,1738506897301,-214.09507011,0.00011779,2]
[351294095,1738506897320,-393.63657452,0.00010958,2]
[351294096,1738506897331,-106.36342548,0.00010958,2]
[351294097,1738506897341,-455.11657452,0.00011779,2]
[351294098,1738506897352,-138.52835537,0.00011779,2]
[351294099,1738506897362,-361.47164463,0.00011779,2]
[351294100,1738506897374,-138.52835537,0.00011779,2]
[351294101,1738506897382,-361.47164463,0.00011779,2]
[351294102,1738506897393,-812.46835537,0.00011779,2]
[351294103,1738506897403,-500.0,0.00011779,2]
[351294104,1738506897412,-500.0,0.00011779,2]
[351294105,1738506897422,-500.0,0.00011779,2]
[351294106,1738506897432,-238.84164463,0.00011779,2]
[351294107,1738506897456,-261.15835537,0.00011779,2]
[351294108,1738506897466,-238.84164463,0.00011779,2]
[351294109,1738506897477,-500.0,0.00011779,2]
[351294110,1738506897501,-500.0,0.00010958,2]
[351294111,1738506897512,-500.0,0.00011779,2]
[351294112,1738506897538,-500.0,0.00011095,2]
[351294113,1738506897550,-769.65835537,0.00011779,2]
[351294114,1738506897559,-2194.97,0.00011779,2]
[351294115,1738506897569,-500.0,0.00011779,2]
[351294116,1738506897578,-500.0,0.00011779,2]
[351294117,1738506897588,-500.0,0.00011779,2]
[351294118,1738506897597,-207.12164463,0.00011779,2]
[351294119,1738506897608,-292.87835537,0.00011779,2]
[351294120,1738506897618,-207.12164463,0.00011779,2]
[351294121,1738506897629,-292.87835537,0.00011779,2]
[351294122,1738506897638,-213.9531581,0.00011779,2]
[351294123,1738506897649,-286.0468419,0.00011779,2]
[351294124,1738506897660,-213.9531581,0.00011779,2]
[351294125,1738506897672,-500.0,0.00011779,2]
[351294126,1738506897692,-69.9268419,0.00011779,2]
[351294127,1738506897701,-430.0731581,0.00011779,2]
[351294128,1738506897720,-210.15,0.00011095,2]
[351294129,1738506897731,-105.4068419,0.00011779,2]
[351294130,1738506897740,-1332.2931581,0.00011779,2]
[351294131,1738506897764,-500.0,0.00011232,2]
[351294132,1738506897777,-2040.76,0.00011779,2]
[351294133,1738506897788,-500.0,0.00011779,2]
[351294134,1738506897799,-512.5,0.00011779,2]
[351294135,1738506897833,-500.0,0.00011779,2]
[351294136,1738506897884,-500.0,0.00011779,2]
[351294137,1738506897903,-1415.89,0.00011779,2]
[351294138,1738506897915,-230.0568419,0.00011779,2]
[351294139,1738506897925,-269.9431581,0.00011779,2]
[351294140,1738506897942,-230.0568419,0.00011779,2]
[351294141,1738506897952,-269.9431581,0.00011779,2]
[351294142,1738506897971,-195.98593272,0.00011369,2]
[351294143,1738506897981,-284.2468419,0.00011779,2]
[351294144,1738506897991,-19.76722538,0.00011779,2]